Workbook

Sheet паспорт
A1: ПАТ "УКРТРАНСГАЗ" | G1: ПАСПОРТ ФІЗИКО-ХІМІЧНИХ ПОКАЗНИКІВ ПРИРОДНОГО ГАЗУ № 870
A2: Філія "УМГ "Черкаситрансгаз" | G2: переданого Кременчуцьким ЛВУМГ та прийнятого ПАТ "Полтавагаз", ПАТ "Кременчукгаз", ВАТ"Кіровоградгаз"
A3: Кременчуцьке ЛВУМГ | G3: Маршрут № 870
A4: Вимірювальна хіміко-аналітична лабораторія
A5: Кременчуцького промислового майданчика
A6: Свідоцтво № 0612 КФ від 30.12.15р. чинне до 20.06.19р. | K6: по газопроводу "Єлець-Кременчук-Кривий Ріг" | V6: за період з | X6: 2017-02-01 | Z6: по | AA6: 2017-02-28
A8: Число місяця | B8: Компонентний склад, % мол. | N8: Фізико-хімічні показники газу обчислені на основі компонентного складу, 101,325 кПа | X8: Температура точки роси за вологою (Р = 3.92 МПа), °С | Y8: Температура точки роси за вуглеводнями, °С | Z8: Вміст сірководню, г/м3 | AA8: Вміст меркаптанової сірки, г/м3 | AB8: Вміст механічних домішок, г/м3
N9: Густина абсолютна, кг/м3,при 20 °С, | O9: Температура вимірювання/згоряння при 20/25°С
B10: метан, С1 | C10: етан, С2 | D10: пропан, С3 | E10: ізо-бутан, і-С4 | F10: н-бутан, н-С4 | G10: нео-пентан, нео-С5 | H10: ізо-пентан, і-С5 | I10: н-пентан, н-С5 | J10: гексани та вищі, С6+ | K10: кисень, О2 | L10: азот, N2 | M10: діоксид вуглецю, CО2 | O10: Теплота згоряння нижча | R10: Теплота згоряння вища | U10: Число Воббе вище
O11: ккал/м³ | P11: МДж/м³ | Q11: кВт⋅год/м³ | R11: ккал/м³ | S11: МДж/м³ | T11: кВт⋅год/м³ | U11: ккал/м³ | V11: МДж/м³ | W11: кВт⋅год/м³
A12: 1 | O12: =P12*238.8459 -> 8170.918239 | P12: 34.21 | Q12: =P12/3.6 -> 9.502777778 | R12: =S12*238.8459 -> 9061.813446 | S12: 37.94 | T12: =S12/3.6 -> 10.53888889 | AC12: =SUM(B12:M12)+$K$43+$N$43 -> 0
A13: 2 | O13: =P13*238.8459 -> 8170.918239 | P13: 34.21 | Q13: 9.502777778 | R13: =S13*238.8459 -> 9061.813446 | S13: 37.94 | T13: 10.53888889 | AC13: 0
A14: 3 | O14: 8170.918239 | P14: 34.21 | Q14: 9.502777778 | R14: 9061.813446 | S14: 37.94 | T14: 10.53888889 | AC14: 0 | AD14: =IF(AC14=100,"ОК"," ") -> 
A15: 4 | O15: 8170.918239 | P15: 34.21 | Q15: 9.502777778 | R15: 9061.813446 | S15: 37.94 | T15: 10.53888889 | AC15: 0 | AD15: =IF(AC15=100,"ОК"," ") -> 
A16: 5 | O16: 8170.918239 | P16: 34.21 | Q16: 9.502777778 | R16: 9061.813446 | S16: 37.94 | T16: 10.53888889 | AC16: 0
A17: 6 | B17: 96.519 | C17: 1.835 | D17: 0.554 | E17: 0.089 | F17: 0.09 | G17: 0 | H17: 0.018 | I17: 0.012 | J17: 0.014 | K17: 0.006 | L17: 0.73 | M17: 0.133 | N17: 0,6950 | O17: 8144.64519 | P17: 34.1 | Q17: 9.472222222 | R17: 9033.151938 | S17: 37.82 | T17: 10.50555556 | U17: 11 891 | V17: 49,78 | W17: =V17/3.6 -> 13.82777778 | X17: -22,3 | AC17: 100 | AD17: ОК
A18: 7 | O18: 8144.64519 | P18: 34.1 | Q18: 9.472222222 | R18: 9033.151938 | S18: 37.82 | T18: 10.50555556 | AC18: 0
A19: 8 | O19: 8144.64519 | P19: 34.1 | Q19: 9.472222222 | R19: 9033.151938 | S19: 37.82 | T19: 10.50555556 | AC19: 0
A20: 9 | O20: 8144.64519 | P20: 34.1 | Q20: 9.472222222 | R20: 9033.151938 | S20: 37.82 | T20: 10.50555556 | AC20: 0
A21: 10 | O21: 8144.64519 | P21: 34.1 | Q21: =P21/3.6 -> 9.472222222 | R21: 9033.151938 | S21: 37.82 | T21: =S21/3.6 -> 10.50555556 | AC21: 0
A22: 11 | O22: 8144.64519 | P22: 34.1 | Q22: 9.472222222 | R22: 9033.151938 | S22: 37.82 | T22: 10.50555556 | AC22: 0
A23: 12 | O23: 8144.64519 | P23: 34.1 | Q23: 9.472222222 | R23: 9033.151938 | S23: 37.82 | T23: 10.50555556 | AC23: 0
A24: 13 | B24: 96.3264 | C24: 1.9872 | D24: 0.6041 | E24: 0.0966 | F24: 0.0949 | G24: 0.0011 | H24: 0.0183 | I24: 0.0127 | J24: 0.0118 | K24: 0.0054 | L24: 0.6924 | M24: 0.1491 | N24: 0,6966 | O24: 8163.752862 | P24: 34.18 | Q24: 9.494444444 | R24: 9052.25961 | S24: 37.9 | T24: 10.52777778 | U24: 11 904 | V24: 49,84 | W24: =V24/3.6 -> 13.84444444 | X24: -21,6 | AC24: 100 | AD24: ОК
A25: 14 | O25: 8163.752862 | P25: 34.18 | Q25: 9.494444444 | R25: 9052.25961 | S25: 37.9 | T25: 10.52777778 | AC25: 0
A26: 15 | O26: 8163.752862 | P26: 34.18 | Q26: 9.494444444 | R26: 9052.25961 | S26: 37.9 | T26: 10.52777778 | AC26: 0
A27: 16 | O27: 8163.752862 | P27: 34.18 | Q27: =P27/3.6 -> 9.494444444 | R27: 9052.25961 | S27: 37.9 | T27: =S27/3.6 -> 10.52777778 | AC27: 0
A28: 17 | O28: 8163.752862 | P28: 34.18 | Q28: 9.494444444 | R28: 9052.25961 | S28: 37.9 | T28: 10.52777778 | AC28: 0
A29: 18 | O29: 8163.752862 | P29: 34.18 | Q29: 9.494444444 | R29: 9052.25961 | S29: 37.9 | T29: 10.52777778 | AC29: 0
A30: 19 | O30: 8163.752862 | P30: 34.18 | Q30: 9.494444444 | R30: 9052.25961 | S30: 37.9 | T30: 10.52777778 | AC30: 0
A31: 20 | B31: 96.3534 | C31: 1.9974 | D31: 0.6061 | E31: 0.0954 | F31: 0.0926 | G31: 0.0013 | H31: 0.0176 | I31: 0.0126 | J31: 0.0117 | K31: 0.0011 | L31: 0.6649 | M31: 0.1459 | N31: 0,6964 | O31: 8166.141321 | P31: 34.19 | Q31: 9.497222222 | R31: 9057.036528 | S31: 37.92 | T31: 10.53333333 | U31: 11 910 | V31: 49,86 | W31: =V31/3.6 -> 13.85 | X31: -22,3 | AC31: 100 | AD31: =IF(AC31=100,"ОК"," ") -> ОК
A32: 21 | O32: 8166.141321 | P32: 34.19 | Q32: 9.497222222 | R32: 9057.036528 | S32: 37.92 | T32: 10.53333333 | AC32: 0
A33: 22 | O33: 8166.141321 | P33: 34.19 | Q33: 9.497222222 | R33: 9057.036528 | S33: 37.92 | T33: 10.53333333 | AC33: 0
A34: 23 | O34: 8166.141321 | P34: 34.19 | Q34: =P34/3.6 -> 9.497222222 | R34: 9057.036528 | S34: 37.92 | T34: =S34/3.6 -> 10.53333333 | AC34: 0 | AD34: =IF(AC34=100,"ОК"," ") -> 
A35: 24 | O35: 8166.141321 | P35: 34.19 | Q35: 9.497222222 | R35: 9057.036528 | S35: 37.92 | T35: 10.53333333 | AC35: 0
A36: 25 | O36: 8166.141321 | P36: 34.19 | Q36: 9.497222222 | R36: 9057.036528 | S36: 37.92 | T36: 10.53333333 | AC36: 0
A37: 26 | O37: 8166.141321 | P37: 34.19 | Q37: 9.497222222 | R37: 9057.036528 | S37: 37.92 | T37: =S37/3.6 -> 10.53333333 | AC37: 0
A38: 27 | B38: 96.3128 | C38: 2.0147 | D38: 0.6155 | E38: 0.0955 | F38: 0.0916 | G38: 0 | H38: 0.0173 | I38: 0.0126 | J38: 0.0113 | K38: 0.001 | L38: 0.68 | M38: 0.1477 | N38: 0,6967 | O38: 8166.141321 | P38: 34.19 | Q38: 9.497222222 | R38: 9057.036528 | S38: 37.92 | T38: 10.53333333 | U38: 11 908 | V38: 49,86 | W38: 13.85 | X38: -22,1 | Z38: 0 | AA38: 0 | AB38: відсутні | AC38: 100 | AD38: ОК
A39: 28 | O39: 8166.141321 | P39: 34.19 | Q39: 9.497222222 | R39: 9057.036528 | S39: 37.92 | T39: 10.53333333 | AC39: 0
A40: 29 | O40: 0 | P40: 0 | Q40: =P40/3.6 -> 0 | R40: 0 | S40: 0 | T40: =S40/3.6 -> 0 | AC40: 0
A41: 30 | O41: 0 | P41: 0 | Q41: =P41/3.6 -> 0 | R41: 0 | S41: 0 | T41: =S41/3.6 -> 0 | AC41: 0
A42: 31 | O42: 0 | P42: 0 | Q42: =P42/3.6 -> 0 | R42: 0 | S42: 0 | T42: =S42/3.6 -> 0 | AC42: 0
A43: Вміст одоранта при одоризації становить 16 г на 1 000 м³ газу | O43: =8160 -> 8160 | P43: =34.16 -> 34.16 | Q43: =AVERAGEA(Q12:Q39) -> 9.491269841 | R43: =9050 -> 9050 | S43: 37.89357143 | T43: =10.52 -> 10.52
H44: Середньозважене значення теплоти згоряння:
B46: Начальник управління Кременчуцького ЛВУМГ Кучерук В.М. | Z46: 02.03.2017 р.
C47: Підрозділу підприємства, якому підпорядкована лабораторія | M47: прізвище | V47: підпис | Z47: дата
B48: Начальник лабораторії ВХАЛ Кучерук Н.М. | Z48: 02.03.2017 р.
C49: Лабораторія, де здійснювалось вимірювання газу | M49: прізвище | V49: підпис | Z49: дата
B50: Провідний економіст із збуту Кривулькін І.В. | Z50: 02.03.2017 р.
C51: Підрозділу, відповідального за облік газу за маршрутом | M51: прізвище | V51: підпис | Z51: дата

Sheet додаток
A2: Додаток до Паспорту фізико-хімічних показників природного газу № 870
A4: Область | B4: ГРС, прямий споживач | C4: Cередньозважене значення вищої теплоти згоряння
C5: МДж/м³ | D5: ккал/м³ | E5: кВт*год./м³
A6: Полтавська область | B6: ГРС Хорішки | C6: 37.88944495 | D6: 9049.73858 | E6: 10.52484582
B7: ГРС Запсілля | C7: 37.88920508 | D7: 9049.681288 | E7: 10.52477919
B8: ГРС Білецьківка | C8: 37.88916706 | D8: 9049.672207 | E8: 10.52476863
A9: Кіровоградська область | B9: ГРС Павлівка | C9: 37.88975317 | D9: 9049.812196 | E9: 10.52493144
B10: ГРС Павлиш | C10: 37.88877042 | D10: 9049.577471 | E10: 10.52465845
B11: ГРС Власівка | C11: 37.88818494 | D11: 9049.437631 | E11: 10.52449582
B12: ГРС Вишнівці | C12: 37.88917334 | D12: 9049.673706 | E12: 10.52477037
B13: ГРС Червона Кам'янка | C13: 37.89001139 | D13: 9049.873871 | E13: 10.52500316
A14: Середньозважене значення вищої теплоти згоряння по маршруту № 870 | C14: 37.88896745 | D14: 9049.624532 | E14: 10.52471318
A18: Начальник управління Кременчуцького ЛВУМГ Кучерук В.Н. | F18: 02.03.2017 р.
A19: Підрозділу підприємства, якому підпорядкована лабораторія | D19: прізвище | E19: підпис | F19: дата
A20: Начальник лабораторії ВХАЛ Кучерук Н.М. | F20: 02.03.2017 р.
A21: Лабораторія, де здійснювалось вимірювання газу | D21: прізвище | E21: підпис | F21: дата
A22: Провідний економіст із збуту Кривулькін І.В. | F22: 02.03.2017 р.
A23: Підрозділу, відповідального за облік газу за маршрутом | D23: прізвище | E23: підпис | F23: дата

Sheet variablesList (hidden)
A1: 3 | B1: x:\gaysin | C1: 10, 11, 24, 25, 127, 128, 132, 180, 207, 215 | D1: x:\
B2: x:\Illinci
B3: x:\Talne
